bitfinex/quotes_SOLUSD_20250107
["timestamp","ask_amount","ask_price","bid_price","bid_amount"]
[1736227039569,8.99963535,216.25,216.19,8.99963535]
[1736227039763,0.71987479,216.24,216.19,8.99963535]
[1736227040243,0.71987479,216.24,216.15,23.776884]
[1736227040244,8.99963535,216.26,216.2,8.99963535]
[1736227040445,0.71987479,216.25,216.2,8.99963535]
[1736227041574,20.0,216.24,216.21,8.99963535]
[1736227041761,20.0,216.24,216.2,8.99963535]
[1736227042069,20.71987479,216.24,216.2,8.99963535]
[1736227042272,0.71987479,216.24,216.19,8.99963535]
[1736227043153,8.99963535,216.23,216.17,8.99963535]
[1736227043351,0.71987479,216.22,216.17,8.99963535]
[1736227046075,0.71987479,216.22,216.18,8.99963535]
[1736227046275,0.71987479,216.23,216.18,8.99963535]
[1736227047370,9.71951014,216.23,216.17,8.99963535]
[1736227050380,0.71987479,216.23,216.18,8.99963535]
[1736227050553,0.71987479,216.24,216.18,8.99963535]
[1736227050881,9.71951014,216.24,216.18,8.99963535]
[1736227051974,0.71987479,216.24,216.18,8.99963535]
[1736227053282,0.71987479,216.24,216.19,8.99963535]
[1736227053463,0.71987479,216.24,216.2,8.99963535]
[1736227053665,0.71987479,216.25,216.2,8.99963535]
[1736227054985,0.71987479,216.25,216.19,8.99963535]
[1736227055965,9.71951014,216.25,216.18,8.99963535]
[1736227056584,28.1149,216.32,216.18,8.99963535]
[1736227056585,7.22383871,216.38,216.28,20.0]
[1736227056785,7.22383871,216.38,216.29,52.65658013]
[1736227057082,7.22383871,216.37,216.3,23.776884]
[1736227057291,7.22383871,216.37,216.32,23.776884]
[1736227057678,7.22383871,216.37,216.36,8.99963535]
[1736227058272,0.71987479,216.43,216.36,8.99963535]
[1736227058471,0.71987479,216.44,216.38,8.99963535]
[1736227058877,20.0,216.42,216.39,8.99963535]
[1736227059089,20.0,216.42,216.38,8.99963535]
[1736227059567,0.71987479,216.44,216.38,8.99963535]
[1736227060081,0.71987479,216.44,216.33,6.35003972]
[1736227060082,8.99963535,216.43,216.36,8.99963535]
[1736227060270,0.71987479,216.42,216.37,8.99963535]
[1736227061174,0.71987479,216.43,216.37,8.99963535]
[1736227061373,9.71951014,216.43,216.36,8.99963535]
[1736227061979,0.71987479,216.43,216.37,8.99963535]
[1736227062381,9.71951014,216.43,216.36,8.99963535]
[1736227067197,9.71951014,216.43,216.37,8.99963535]
[1736227068194,0.71987479,216.43,216.37,8.99963535]
[1736227068396,0.71987479,216.43,216.38,8.99963535]
[1736227071234,0.71987479,216.43,216.37,8.99963535]
[1736227073104,9.71951014,216.43,216.31,23.776884]
[1736227073299,8.99963535,216.41,216.33,8.99963535]
[1736227073504,0.71987479,216.4,216.33,8.99963535]
[1736227073806,0.71987479,216.4,216.34,8.99963535]
[1736227074209,0.71987479,216.4,216.35,8.99963535]
[1736227074413,0.71987479,216.41,216.35,8.99963535]
[1736227075718,8.99963535,216.4,216.33,8.99963535]
[1736227075919,0.71987479,216.39,216.33,8.99963535]
[1736227077835,0.71987479,216.39,216.27,6.01670639]
[1736227078038,9.71951014,216.39,216.32,8.99963535]
[1736227078214,8.99963535,216.38,216.31,8.99963535]
[1736227078415,8.99963535,216.38,216.3,23.776884]
[1736227078416,0.71987479,216.37,216.3,23.776884]
[1736227078614,0.71987479,216.37,216.32,8.99963535]
[1736227078921,0.71987479,216.37,216.33,8.99963535]
[1736227079315,0.71987479,216.38,216.27,25.836884]
[1736227079521,0.71987479,216.38,216.33,8.99963535]
[1736227079837,0.71987479,216.38,216.32,8.99963535]
[1736227083931,0.71987479,216.39,216.32,8.99963535]
[1736227084451,9.71951014,216.39,216.32,8.99963535]
[1736227085451,8.99963535,216.36,216.25,7.7124]
[1736227085629,0.71987479,216.35,216.29,8.99963535]
[1736227085824,9.71951014,216.35,216.29,8.99963535]
[1736227086248,0.71987479,216.35,216.3,8.99963535]
[1736227087544,9.71951014,216.35,216.25,7.7124]
[1736227087734,9.71951014,216.35,216.29,8.99963535]
[1736227089651,9.71951014,216.35,216.25,7.7124]
[1736227089840,8.99963535,216.34,216.28,8.99963535]
[1736227090030,0.71987479,216.33,216.28,8.99963535]
[1736227092657,8.99963535,216.35,216.25,1.5036]
[1736227092658,0.71987479,216.34,216.25,1.5036]
[1736227092831,28.99963535,216.33,216.25,1.5036]
[1736227093026,0.71987479,216.32,216.26,8.99963535]
[1736227093232,9.71951014,216.32,216.25,8.99963535]
[1736227095843,9.71951014,216.32,216.26,8.99963535]
[1736227096037,0.71987479,216.32,216.26,8.99963535]
[1736227103248,0.71987479,216.32,216.25,8.99963535]
[1736227104657,0.71987479,216.32,216.26,8.99963535]
[1736227105262,9.71951014,216.32,216.25,8.99963535]
[1736227106459,9.71951014,216.32,216.21,23.776884]
[1736227106667,9.71951014,216.32,216.25,8.99963535]
[1736227109476,8.99963535,216.31,216.24,8.99963535]
[1736227109657,0.71987479,216.3,216.24,8.99963535]
[1736227114478,0.71987479,216.32,216.24,8.99963535]
[1736227114775,8.99963535,216.31,216.24,8.99963535]
[1736227114982,0.71987479,216.3,216.24,8.99963535]
[1736227115365,0.71987479,216.3,216.25,8.99963535]
[1736227115981,0.71987479,216.31,216.25,8.99963535]
[1736227118079,0.71987479,216.35,216.29,8.99963535]
[1736227118286,0.71987479,216.35,216.31,8.99963535]
[1736227118484,0.71987479,216.37,216.31,8.99963535]
[1736227118777,0.71987479,216.37,216.32,8.99963535]
[1736227119178,0.71987479,216.38,216.33,8.99963535]
[1736227119386,0.71987479,216.38,216.34,8.99963535]
[1736227120578,0.71987479,216.39,216.34,8.99963535]
[1736227121388,0.71987479,216.39,216.33,8.99963535]
[1736227121763,0.71987479,216.39,216.34,8.99963535]
[1736227122164,0.71987479,216.39,216.35,8.99963535]
[1736227122364,0.71987479,216.4,216.35,8.99963535]
[1736227125392,20.0,216.39,216.35,8.99963535]
[1736227125970,0.71987479,216.41,216.37,8.99963535]
[1736227126196,0.71987479,216.43,216.38,8.99963535]
[1736227126395,8.99963535,216.45,216.38,8.99963535]
[1736227126695,20.0,216.42,216.38,8.99963535]
[1736227131696,20.0,216.41,216.37,8.99963535]
[1736227136382,20.0,216.41,216.38,8.99963535]
[1736227136583,0.71987479,216.44,216.38,8.99963535]
[1736227136787,0.71987479,216.46,216.38,8.99963535]
[1736227136986,8.99963535,216.45,216.38,8.99963535]
[1736227137170,0.71987479,216.44,216.38,8.99963535]
[1736227139401,0.71987479,216.44,216.39,8.99963535]
[1736227143274,20.0,216.45,216.4,8.99963535]
[1736227143792,20.0,216.45,216.41,8.99963535]
[1736227147491,0.71987479,216.44,216.38,8.99963535]
[1736227148514,0.71987479,216.44,216.39,8.99963535]
[1736227151921,20.71987479,216.45,216.39,8.99963535]
[1736227152711,20.0,216.45,216.4,8.99963535]
[1736227152918,20.0,216.45,216.41,8.99963535]
[1736227154020,0.71987479,216.48,216.43,8.99963535]
[1736227154192,8.99963535,216.5,216.43,8.99963535]
[1736227154392,20.0,216.47,216.43,8.99963535]
[1736227155717,0.71987479,216.49,216.44,8.99963535]
[1736227155718,20.0,216.48,216.44,8.99963535]
[1736227156131,20.0,216.48,216.43,8.99963535]
[1736227156496,20.0,216.47,216.43,8.99963535]
[1736227157819,20.0,216.47,216.44,8.99963535]
[1736227159006,20.0,216.47,216.38,23.776884]
[1736227159007,0.71987479,216.5,216.45,8.99963535]
[1736227159211,0.71987479,216.52,216.46,8.99963535]
[1736227159714,0.71987479,216.52,216.47,8.99963535]
[1736227160128,0.71987479,216.52,216.48,8.99963535]
[1736227160310,0.71987479,216.52,216.47,8.99963535]
[1736227161205,12.26597479,216.53,216.47,8.99963535]
[1736227162123,12.26597479,216.53,216.48,8.99963535]
[1736227162816,12.26597479,216.53,216.47,8.99963535]
[1736227163327,0.71987479,216.54,216.5,8.99963535]
[1736227163498,8.99963535,216.56,216.5,8.99963535]
[1736227163705,20.0,216.53,216.5,8.99963535]
[1736227164006,20.0,216.53,216.42,30.79426073]
[1736227164007,20.0,216.53,216.48,8.99963535]
[1736227164305,0.71987479,216.52,216.46,8.99963535]
[1736227164531,0.71987479,216.52,216.47,8.99963535]
[1736227165024,9.71951014,216.52,216.42,30.101384]
[1736227165301,8.99963535,216.49,216.42,8.99963535]
[1736227165512,0.71987479,216.48,216.42,8.99963535]
[1736227166126,0.71987479,216.48,216.43,8.99963535]
[1736227166427,0.71987479,216.49,216.43,8.99963535]
[1736227167515,0.71987479,216.49,216.44,8.99963535]
[1736227168634,0.71987479,216.5,216.45,8.99963535]
[1736227168805,0.71987479,216.5,216.46,8.99963535]
[1736227169004,0.71987479,216.51,216.46,8.99963535]
[1736227170225,0.71987479,216.53,216.48,8.99963535]
[1736227170426,8.99963535,216.55,216.48,8.99963535]
[1736227170730,9.71951014,216.54,216.48,8.99963535]
[1736227170909,0.71987479,216.54,216.48,8.99963535]
[1736227171411,0.71987479,216.54,216.49,8.99963535]
[1736227171816,0.71987479,216.54,216.5,8.99963535]
[1736227172009,20.0,216.53,216.49,8.99963535]
[1736227173240,20.0,216.54,216.5,8.99963535]
[1736227174038,20.0,216.53,216.49,8.99963535]
[1736227175037,20.0,216.53,216.45,23.776884]
[1736227175235,20.0,216.53,216.49,8.99963535]
[1736227175465,28.99963535,216.55,216.49,8.99963535]
[1736227175664,28.99963535,216.55,216.45,23.776884]
[1736227175665,9.71951014,216.54,216.48,8.99963535]
[1736227176852,8.99963535,216.49,216.41,8.99963535]
[1736227177030,8.99963535,216.47,216.4,8.99963535]
[1736227177225,0.71987479,216.46,216.4,8.99963535]
[1736227177465,0.71987479,216.46,216.41,8.99963535]
[1736227178234,0.71987479,216.47,216.42,8.99963535]
[1736227178757,0.71987479,216.47,216.39,6.4732]
[1736227178758,0.71987479,216.47,216.43,8.99963535]
[1736227179160,0.71987479,216.48,216.43,8.99963535]
[1736227180767,8.99963535,216.46,216.39,8.99963535]
[1736227180974,0.71987479,216.45,216.4,8.99963535]
[1736227181539,0.71987479,216.45,216.39,8.99963535]
[1736227183148,8.99963535,216.46,216.37,23.776884]
[1736227183334,0.71987479,216.45,216.39,8.99963535]
[1736227184941,9.71951014,216.45,216.39,8.99963535]
[1736227185162,8.99963535,216.44,216.38,8.99963535]
[1736227185339,0.71987479,216.43,216.38,8.99963535]
[1736227186664,0.71987479,216.44,216.38,8.99963535]
[1736227190894,9.71951014,216.44,216.38,8.99963535]
[1736227191192,0.71987479,216.44,216.38,8.99963535]
[1736227193296,13.41218671,216.57,216.43,32.77651935]
[1736227193461,13.41218671,216.57,216.49,8.99963535]
[1736227193462,0.71987479,216.56,216.49,8.99963535]
[1736227195884,0.71987479,216.56,216.51,8.99963535]
[1736227197387,0.71987479,216.56,216.53,8.99963535]
[1736227197770,20.71987479,216.56,216.52,8.99963535]
[1736227198585,0.71987479,216.56,216.52,8.99963535]
[1736227198786,20.71987479,216.57,216.52,8.99963535]
[1736227199701,20.0,216.56,216.52,8.99963535]
[1736227199895,0.71987479,216.55,216.52,8.99963535]
[1736227200097,0.71987479,216.55,216.51,8.99963535]
[1736227201774,0.71987479,216.57,216.51,8.99963535]
[1736227203390,8.99963535,216.55,216.45,23.776884]
[1736227203599,0.71987479,216.54,216.45,23.776884]
[1736227203785,0.71987479,216.54,216.47,8.99963535]
[1736227204397,0.71987479,216.54,216.48,8.99963535]
[1736227205686,0.71987479,216.54,216.44,1.6042]
[1736227205886,8.99963535,216.48,216.39,1.619]
[1736227206100,0.71987479,216.47,216.39,1.619]
[1736227206392,0.71987479,216.47,216.42,8.99963535]
[1736227206998,0.71987479,216.48,216.42,8.99963535]
[1736227207311,0.71987479,216.48,216.39,1.619]
[1736227207479,0.71987479,216.48,216.42,8.99963535]
[1736227209499,0.71987479,216.48,216.43,8.99963535]
[1736227209800,0.71987479,216.48,216.44,8.99963535]
[1736227210022,0.71987479,216.5,216.44,8.99963535]
[1736227210503,0.71987479,216.5,216.39,1.619]
[1736227210504,0.71987479,216.5,216.45,8.99963535]
[1736227211417,28.99963535,216.52,216.45,8.99963535]
[1736227211607,0.71987479,216.51,216.45,8.99963535]
[1736227213196,20.0,216.5,216.46,8.99963535]
[1736227213913,0.71987479,216.49,216.45,8.99963535]
[1736227214095,0.71987479,216.49,216.44,8.99963535]
[1736227214988,0.71987479,216.5,216.44,8.99963535]
[1736227215615,8.99963535,216.48,216.39,1.619]
[1736227215783,0.71987479,216.47,216.41,8.99963535]
[1736227216536,9.71951014,216.47,216.41,8.99963535]
[1736227216813,8.99963535,216.46,216.39,8.99963535]
[1736227216999,0.71987479,216.45,216.39,8.99963535]
[1736227218813,9.71951014,216.45,216.38,8.99963535]
[1736227219217,9.71951014,216.45,216.37,8.99963535]
[1736227219218,8.99963535,216.44,216.37,8.99963535]
[1736227219394,9.71951014,216.43,216.37,8.99963535]
[1736227219596,0.71987479,216.43,216.38,8.99963535]
[1736227220010,9.71951014,216.43,216.34,1.5348]
[1736227220312,8.99963535,216.42,216.35,8.99963535]
[1736227220514,0.71987479,216.41,216.36,8.99963535]
[1736227220828,0.71987479,216.41,216.37,8.99963535]
[1736227221113,0.71987479,216.43,216.37,8.99963535]
[1736227221799,20.0,216.35,216.28,7.22994377]
[1736227222114,8.99963535,216.3,216.28,7.22994377]
[1736227222290,0.71987479,216.29,216.28,7.22994377]
[1736227222493,21.98,216.34,216.23,23.776884]
[1736227222494,0.71987479,216.33,216.23,23.776884]
[1736227222814,1.98,216.32,216.23,23.776884]
[1736227223003,1.98,216.32,216.28,8.99963535]
[1736227224314,1.98,216.32,216.27,8.99963535]
[1736227227215,1.98,216.32,216.28,8.99963535]
[1736227228430,2.69987479,216.34,216.29,8.99963535]
[1736227229219,1.98,216.34,216.3,8.99963535]
[1736227229419,1.98,216.34,216.29,8.99963535]
[1736227230538,1.98,216.34,216.27,8.99963535]
[1736227230539,0.71987479,216.33,216.27,8.99963535]
[1736227230825,0.71987479,216.33,216.23,23.776884]
[1736227230826,8.99963535,216.31,216.23,23.776884]
[1736227231021,9.71951014,216.3,216.24,8.99963535]
[1736227231231,9.71951014,216.3,216.23,8.99963535]
[1736227231531,9.71951014,216.3,216.24,8.99963535]
[1736227231726,0.71987479,216.3,216.24,8.99963535]
[1736227231925,0.71987479,216.3,216.22,1.5787]
[1736227231926,2.69987479,216.3,216.25,8.99963535]
[1736227232102,1.98,216.3,216.25,8.99963535]
[1736227232529,1.98,216.3,216.26,8.99963535]
[1736227233402,1.98,216.3,216.25,8.99963535]
[1736227233606,10.97963535,216.3,216.23,8.99963535]
[1736227233806,1.98,216.3,216.25,8.99963535]
[1736227234224,1.98,216.3,216.26,8.99963535]
[1736227235228,0.71987479,216.32,216.27,8.99963535]
[1736227235444,1.98,216.34,216.28,8.99963535]
[1736227235633,0.71987479,216.33,216.27,8.99963535]
[1736227235935,9.71951014,216.33,216.27,8.99963535]
[1736227236316,8.99963535,216.32,216.26,8.99963535]
[1736227237334,8.99963535,216.32,216.25,8.99963535]
[1736227237641,0.71987479,216.31,216.25,8.99963535]
[1736227238538,9.71951014,216.31,216.24,8.99963535]
[1736227239156,0.71987479,216.31,216.26,8.99963535]
[1736227239736,1.98,216.34,216.24,8.99963535]
[1736227239737,8.99963535,216.3,216.24,8.99963535]
[1736227239931,9.71951014,216.29,216.23,8.99963535]
[1736227240241,8.99963535,216.31,216.24,8.99963535]
[1736227240415,0.71987479,216.3,216.25,8.99963535]
[1736227240833,0.71987479,216.3,216.24,8.99963535]
[1736227241044,20.0,216.31,216.26,8.99963535]
[1736227245158,1.4415,216.36,216.27,8.99963535]
[1736227245320,11.75951014,216.35,216.28,8.99963535]
[1736227245521,8.99963535,216.33,216.27,8.99963535]
[1736227245720,11.03963535,216.33,216.26,8.99963535]
[1736227246521,8.99963535,216.32,216.25,8.99963535]
[1736227247151,9.71951014,216.31,216.25,8.99963535]
[1736227247324,8.99963535,216.29,216.17,2.24597828]
[1736227247649,0.71987479,216.28,216.22,8.99963535]
[1736227247948,8.99963535,216.27,216.2,8.99963535]
[1736227248164,8.99963535,216.28,216.21,8.99963535]
[1736227248339,8.99963535,216.28,216.22,8.99963535]
[1736227248539,8.99963535,216.29,216.22,8.99963535]
[1736227248738,9.71951014,216.32,216.25,8.99963535]
[1736227249052,8.99963535,216.31,216.25,8.99963535]
[1736227249251,0.71987479,216.3,216.25,8.99963535]
[1736227249437,0.71987479,216.3,216.24,8.99963535]
[1736227249965,8.99963535,216.31,216.24,8.99963535]
[1736227250630,0.71987479,216.3,216.24,8.99963535]
[1736227251648,0.71987479,216.3,216.2,23.776884]
[1736227251855,8.99963535,216.29,216.22,8.99963535]
[1736227252029,0.71987479,216.28,216.2,23.776884]
[1736227252351,0.71987479,216.28,216.22,8.99963535]
[1736227254036,0.71987479,216.28,216.23,8.99963535]
[1736227254243,9.71951014,216.31,216.24,8.99963535]
[1736227254854,8.99963535,216.28,216.18,23.776884]
[1736227255034,8.99963535,216.29,216.22,8.99963535]
[1736227255346,8.99963535,216.29,216.18,23.776884]
[1736227255347,29.71951014,216.3,216.23,8.99963535]
[1736227256053,20.71987479,216.3,216.24,8.99963535]
[1736227258552,20.71987479,216.3,216.23,8.99963535]
[1736227258755,29.71951014,216.3,216.22,8.99963535]
[1736227260756,8.99963535,216.28,216.2,8.99963535]
[1736227261053,8.99963535,216.27,216.2,8.99963535]
[1736227262133,8.99963535,216.24,216.12,9.54552593]
[1736227262343,8.99963535,216.22,216.12,9.54552593]
[1736227262549,9.71951014,216.21,216.14,8.99963535]
[1736227262837,9.71951014,216.21,216.15,8.99963535]
[1736227262838,0.71987479,216.21,216.15,8.99963535]
[1736227263360,8.99963535,216.23,216.16,8.99963535]
[1736227263559,0.71987479,216.22,216.16,8.99963535]
[1736227267778,8.99963535,216.21,216.15,8.99963535]
[1736227268070,8.99963535,216.22,216.15,8.99963535]
[1736227268360,8.6947,216.26,216.15,8.99963535]
[1736227268361,9.71951014,216.21,216.15,8.99963535]
[1736227270365,9.71951014,216.21,216.13,23.776884]
[1736227270552,8.99963535,216.19,216.13,8.99963535]
[1736227270736,8.99963535,216.18,216.09,20.0]
[1736227270941,8.99963535,216.18,216.12,8.99963535]
[1736227271337,2.02,216.19,216.17,8.99963535]
[1736227271865,2.02,216.21,216.17,8.99963535]
[1736227272443,2.02,216.21,216.16,8.99963535]
[1736227272670,2.73987479,216.21,216.15,8.99963535]
[1736227273249,11.73951014,216.21,216.15,8.99963535]
[1736227273457,8.99963535,216.2,216.13,8.99963535]
[1736227273746,8.99963535,216.18,216.08,23.776884]
[1736227274079,0.71987479,216.17,216.11,8.99963535]
[1736227274243,0.71987479,216.17,216.12,8.99963535]
[1736227274543,8.99963535,216.19,216.12,8.99963535]
[1736227274743,9.71951014,216.18,216.08,23.776884]
[1736227274974,9.71951014,216.18,216.06,1.5171]
[1736227275269,9.71951014,216.18,216.11,8.99963535]
[1736227277265,0.71987479,216.18,216.12,8.99963535]
[1736227277472,9.71951014,216.18,216.12,8.99963535]
[1736227277962,9.71951014,216.18,216.11,8.99963535]
[1736227279267,9.71951014,216.18,216.07,23.776884]
[1736227279444,9.71951014,216.18,216.11,8.99963535]
[1736227281153,21.4415,216.21,216.13,8.99963535]
[1736227281355,2.02,216.2,216.15,8.99963535]
[1736227283481,2.02,216.2,216.14,8.99963535]
[1736227285258,11.01963535,216.2,216.13,8.99963535]
[1736227285777,0.71987479,216.19,216.13,8.99963535]
[1736227286073,0.71987479,216.19,216.03,7.22994377]
[1736227286074,8.99963535,216.14,216.03,7.22994377]
[1736227286255,8.99963535,216.14,216.07,8.99963535]
[1736227286455,8.99963535,216.14,216.06,8.99963535]
[1736227287270,8.99963535,216.13,216.03,23.776884]
[1736227287485,8.99963535,216.13,216.06,23.776884]
[1736227287982,8.99963535,216.14,216.06,8.99963535]
[1736227289750,8.99963535,216.15,216.07,8.99963535]
[1736227292076,8.99963535,216.14,216.07,8.99963535]
[1736227292773,8.99963535,216.13,216.06,8.99963535]
[1736227299080,8.99963535,216.14,216.06,8.99963535]
[1736227300779,8.99963535,216.13,216.06,8.99963535]
[1736227301158,10.99963535,216.13,216.06,8.99963535]
[1736227301479,8.99963535,216.11,216.03,23.776884]
[1736227301686,8.99963535,216.1,216.03,8.99963535]
[1736227304081,2.71987479,216.13,216.0,2.22189532]
[1736227304082,8.99963535,216.08,216.01,23.776884]
[1736227304264,8.99963535,216.08,216.01,32.77651935]
[1736227304886,8.99963535,216.08,216.0,1.5278]
[1736227305092,9.71951014,216.07,216.0,1.5278]
[1736227305294,9.71951014,216.07,216.0,8.99963535]
[1736227308389,0.71987479,216.07,216.01,8.99963535]
[1736227308584,0.71987479,216.1,216.03,8.99963535]
[1736227308794,9.71951014,216.1,216.03,8.99963535]
[1736227310285,8.99963535,216.09,216.03,8.99963535]
[1736227310734,8.99963535,216.09,216.02,8.99963535]
[1736227311036,8.99963535,216.07,216.0,23.776884]
[1736227311231,8.99963535,216.07,216.01,8.99963535]
[1736227311403,8.99963535,216.06,215.97,23.776884]
[1736227311607,8.99963535,216.06,215.99,8.99963535]
[1736227311818,10.99963535,216.06,215.99,8.99963535]
[1736227312525,10.99963535,216.06,215.97,23.776884]
[1736227312834,10.99963535,216.06,216.0,8.99963535]
[1736227313312,2.0,216.06,216.01,8.99963535]
[1736227314421,2.0,216.06,215.96,23.776884]
[1736227314608,2.0,216.06,216.01,8.99963535]
[1736227317229,2.0,216.06,216.03,8.99963535]
[1736227320018,8.99963535,216.09,216.03,8.99963535]
[1736227320221,2.71987479,216.11,216.05,8.99963535]
[1736227320619,2.0,216.11,216.05,8.99963535]
[1736227321523,33.16101014,216.12,216.05,8.99963535]
[1736227321729,0.71987479,216.11,216.05,8.99963535]
[1736227321916,9.71951014,216.11,216.05,8.99963535]
[1736227322513,9.71951014,216.11,216.0,23.776884]
[1736227322719,9.71951014,216.11,216.05,8.99963535]
[1736227323422,9.71951014,216.11,216.0,23.776884]
[1736227323629,8.99963535,216.08,215.98,20.0]
[1736227323813,8.99963535,216.08,216.01,8.99963535]
[1736227325921,8.99963535,216.08,216.02,8.99963535]
[1736227326329,10.99963535,216.1,216.03,8.99963535]
[1736227326509,0.71987479,216.11,216.06,8.99963535]
[1736227326699,2.0,216.11,216.07,8.99963535]
[1736227326898,8.99963535,216.12,216.06,8.99963535]
[1736227327098,1.4415,216.17,216.11,8.99963535]
[1736227327522,10.44113535,216.17,216.11,8.99963535]
[1736227329430,1.4415,216.17,216.11,8.99963535]
[1736227330740,10.44113535,216.17,216.11,8.99963535]
[1736227331535,10.44113535,216.17,216.1,8.99963535]
[1736227332931,1.4415,216.17,216.1,8.99963535]
[1736227333308,10.44113535,216.17,216.1,8.99963535]
[1736227337638,8.99963535,216.16,216.1,8.99963535]
[1736227337940,8.99963535,216.16,216.09,8.99963535]
[1736227339644,8.99963535,216.15,216.08,8.99963535]
[1736227341447,8.99963535,216.15,216.09,8.99963535]
[1736227341946,8.99963535,216.16,216.09,8.99963535]
[1736227342830,1.4415,216.29,216.16,23.776884]
[1736227343014,1.4415,216.29,216.16,24.47055809]
[1736227343015,9.71951014,216.28,216.16,24.47055809]
[1736227343219,8.99963535,216.27,216.2,8.99963535]
[1736227343427,8.99963535,216.26,216.19,8.99963535]
[1736227343746,8.99963535,216.21,216.12,0.69370691]
[1736227343924,8.99963535,216.21,216.15,23.776884]
[1736227344119,8.99963535,216.21,216.14,8.99963535]
[1736227344331,8.99963535,216.2,216.13,8.99963535]
[1736227344643,8.99963535,216.2,216.14,23.776884]
[1736227344848,8.99963535,216.19,216.12,8.99963535]
[1736227345015,8.99963535,216.18,216.11,8.99963535]
[1736227345215,8.99963535,216.17,216.11,8.99963535]
[1736227345427,8.99963535,216.17,216.12,23.776884]
[1736227345642,8.99963535,216.18,216.12,23.776884]
[1736227345836,8.99963535,216.18,216.11,8.99963535]
[1736227346038,8.99963535,216.15,216.08,28.99963535]
[1736227346235,8.99963535,216.15,216.08,8.99963535]
[1736227346437,8.99963535,216.14,216.09,23.776884]
[1736227346636,8.99963535,216.15,216.09,23.776884]
[1736227348049,8.99963535,216.16,216.09,23.776884]
[1736227348549,8.99963535,216.16,216.09,8.99963535]
[1736227350652,8.99963535,216.17,216.1,8.99963535]
[1736227353646,8.99963535,216.17,216.11,8.99963535]
[1736227355353,8.99963535,216.18,216.12,8.99963535]
[1736227356639,2.16137479,216.21,216.14,8.99963535]
[1736227356831,0.71987479,216.21,216.15,8.99963535]
[1736227357154,9.71951014,216.21,216.15,8.99963535]
[1736227357458,8.99963535,216.2,216.14,8.99963535]
[1736227357953,8.99963535,216.21,216.15,8.99963535]
[1736227362857,8.99963535,216.22,216.15,8.99963535]
[1736227363265,9.71951014,216.21,216.15,8.99963535]
[1736227367364,8.99963535,216.21,216.15,8.99963535]
[1736227371448,8.99963535,216.19,216.12,1.5735]
[1736227371651,8.99963535,216.19,216.13,8.99963535]
[1736227371851,8.99963535,216.2,216.14,8.99963535]
[1736227374786,8.99963535,216.21,216.14,8.99963535]
[1736227376248,8.99963535,216.2,216.14,8.99963535]
[1736227377266,8.99963535,216.2,216.13,8.99963535]
[1736227379574,20.0,216.23,216.15,8.99963535]
[1736227379776,8.99963535,216.22,216.15,8.99963535]
[1736227381881,9.71951014,216.26,216.19,8.99963535]
[1736227382174,0.71987479,216.26,216.2,8.99963535]
[1736227382365,8.99963535,216.27,216.2,8.99963535]
[1736227382564,9.71951014,216.27,216.2,8.99963535]
[1736227383675,8.99963535,216.26,216.2,8.99963535]
[1736227384383,8.99963535,216.24,216.18,8.99963535]
[1736227384559,8.99963535,216.19,216.13,7.22314316]
[1736227384760,8.99963535,216.18,216.12,16.94653535]
[1736227385160,8.99963535,216.19,216.13,8.99963535]
[1736227385618,8.99963535,216.2,216.13,8.99963535]
[1736227385918,8.99963535,216.2,216.14,8.99963535]
[1736227390075,8.99963535,216.2,216.13,32.77651935]
[1736227392217,8.99963535,216.2,216.14,8.99963535]
[1736227392379,8.99963535,216.21,216.15,8.99963535]
[1736227392780,8.99963535,216.22,216.15,8.99963535]
[1736227393497,8.99963535,216.22,216.16,8.99963535]
[1736227393798,28.99963535,216.23,216.16,8.99963535]
[1736227398194,8.99963535,216.21,216.15,8.99963535]
[1736227398519,20.0,216.23,216.13,23.776884]
[1736227398520,8.99963535,216.2,216.14,8.99963535]
[1736227401120,8.99963535,216.21,216.14,8.99963535]
[1736227402103,8.99963535,216.19,216.12,7.9469]
[1736227402306,8.99963535,216.18,216.12,10.57313535]
[1736227402496,8.99963535,216.19,216.12,10.57313535]
[1736227404117,0.71987479,216.2,216.11,8.99963535]
[1736227404328,8.99963535,216.16,216.1,8.99963535]
[1736227405619,8.99963535,216.17,216.1,8.99963535]
[1736227408933,8.99963535,216.17,216.07,9.48955964]
[1736227409138,9.71951014,216.16,216.09,8.99963535]
[1736227410541,9.71951014,216.16,216.08,23.776884]
[1736227410716,9.71951014,216.16,216.09,8.99963535]
[1736227412442,9.71951014,216.16,216.1,8.99963535]
[1736227412735,8.99963535,216.16,216.1,8.99963535]
[1736227417547,8.99963535,216.17,216.1,8.99963535]
[1736227418535,8.9386068,216.17,216.1,8.99963535]
[1736227423064,0.71987479,216.2,216.13,8.99963535]
[1736227423248,8.99963535,216.2,216.14,8.99963535]
[1736227423544,0.71987479,216.19,216.14,8.99963535]
[1736227423725,9.71951014,216.19,216.13,8.99963535]
[1736227427947,0.71987479,216.19,216.13,8.99963535]
[1736227428121,9.71951014,216.19,216.13,8.99963535]